Cogmind - Beta 16 @@@ ROGUE MODE // 2025.10.22 @ 00:56:35 Player: War__Prophet Result: Destroyed by H-61 Shepherd with Heavy Assault Cannon Performance ------------- Evolutions (2) 1000 Regions Visited (3) 600 Robots Destroyed (38) 190 Value Destroyed (974) 974 Prototype IDs (1) 20 Alien Tech Used (0) 0 Bonus (0) 0 TOTAL SCORE: 2784 Bonus ------- None Cogmind --------- Core Integrity 0/550 Matter 300/300 Energy 100/100 System Corruption 0% Temperature Cool (0) Movement Core (350) Ox6 Location -8/Materials Parts ------- > --- POWER (1) -------- (None) > --- PROPULSION (4) --- (None) > --- UTILITY (4) ------ Improved Heat Sink Large Storage Unit Visual Processing Unit Hacking Suite > --- WEAPON (2) ------- (None) > --- INVENTORY (15) --- Ion Engine Light Ion Engine Light Ion Engine Insulated Plating Hacking Suite Hacking Suite Shotgun Shotgun Grenade Launcher Peak State ------------ > --- POWER ------------ Light Ion Engine > --- PROPULSION ------- Wheel Compact Wheel Compact Wheel Armored Wheel > --- UTILITY ---------- Large Storage Unit Visual Processing Unit Hacking Suite Hacking Suite > --- WEAPON ----------- Minigun Katana > --- INVENTORY -------- Ion Engine Light Ion Engine Wheel Insulated Plating Hacking Suite Hacking Suite Shotgun Shotgun Grenade Launcher [Rating: 22] Favorites ----------- Power Light Ion Engine Engine Light Ion Engine Power Core Light Nuclear Core Propulsion Compact Wheel Treads Light Treads Wheel Compact Wheel Utility Hacking Suite Device Improved Heat Sink Storage Small Storage Unit Processor Visual Processing Unit Hackware Hacking Suite Weapon Shotgun Energy Gun Small Laser Ballistic Gun Shotgun Slashing Weapon Katana Build | -11 -10 -9 -8 ------- Run | Yrd Mat Mat Mat Slots Evolved 4 | . . 2 2 Power . | . . . . Propulsion 2 | . . . 2 Utility 2 | . . 2 . Weapon . | . . . . Parts Attached 38 | 7 . 19 12 Power 8 | 2 . 3 3 Engine 7 | 2 . 2 3 Core 1 | . . 1 . Reactor . | . . . . Propulsion 12 | 2 . 5 5 Treads 2 | . . 2 . Leg . | . . . . Wheel 10 | 2 . 3 5 Hover . | . . . . Flight . | . . . . Utility 8 | 1 . 5 2 Device 1 | . . . 1 Storage 2 | 1 . . 1 Processor 2 | . . 2 . Hackware 3 | . . 3 . Protection . | . . . . Artifact . | . . . . Weapon 10 | 2 . 6 2 Energy Gun 1 | . . 1 . Energy Cannon . | . . . . Ballistic Gun 8 | 2 . 5 1 Ballistic Cannon . | . . . . Launcher . | . . . . Special Weapon . | . . . . Impact Weapon . | . . . . Slashing Weapon 1 | . . . 1 Piercing Weapon . | . . . . Special Melee Weapon . | . . . . Unidentified Prototypes 1 | . . 1 . Parts Lost 16 | . . 4 12 Power 3 | . . 1 2 Propulsion 9 | . . 1 8 Utility 1 | . . 1 . Weapon 3 | . . 1 2 Highest Loss Streak 7 | . . 2 7 To Critical Strikes . | . . . . Average Backups 7 | . 3 7 9 Power 1 | . 1 2 2 Propulsion 2 | . . 2 2 Utility 1 | . . 1 2 Weapon 1 | . . 1 1 Tool/Special . | . . . . Unused Backups 8 | . . 3 5 Power 1 | . . . 1 Propulsion 3 | . . 3 . Utility 3 | . . . 3 Weapon 1 | . . . 1 Tool/Special . | . . . . Average Slot Usage (%) 85 | . 85 87 83 Engine 9 | . 14 9 8 Treads 2 | . . 4 . Wheel 19 | . 28 15 24 Storage 10 | . 14 11 9 Processor 5 | . . 4 9 Hackware 16 | . . 19 15 Ballistic Gun 17 | . 28 21 11 Slashing Weapon 1 | . . . 4 Peak Build Rating 22 | 6 6 18 22 Average Rating 15 | 4 6 14 18 On Entrance 7 | . 6 6 17 Avg Prop Armor Cover (%) . | . . . . Naked Turns . | . . . . Heaviest Build 31 | 12 12 18 31 Greatest Support 58 | 26 26 40 58 Greatest Overweight (x) 6 | . . 1 6 Average Overweight (x) . | . . . . Largest Inventory Capacity 15 | 8 8 8 15 Average Capacity 9 | 6 8 8 12 Most Carried 12 | 1 5 8 12 Average Carried 7 | . 3 7 9 Final Capacity 15 | 8 8 8 15 Final Carried 9 | 1 5 8 9 Class Distribution -------------------- 45% | Scavenger-Mutant 28% | Hacker-Mutant 25% | Mutant Dominant Class ---------------- Mutant | -10/Materials Scavenger-Mutant | -9/Materials Scavenger-Mutant | -8/Materials Resources | -11 -10 -9 -8 ----------- Run | Yrd Mat Mat Mat Matter Collected 1211 | 238 38 672 263 Remotely . | . . . . Salvage Created 1437 | . 84 797 556 Parts 97 | . 3 64 30 Haulers Intercepted 1 | . . 1 . Recyclers Shooed 3 | . . 3 . Parts Field Recycled . | . . . . Retrieved Matter . | . . . . Parts Self-Destructed . | . . . . Prevented . | . . . . Parts Restored . | . . . . Kills | -11 -10 -9 -8 ------- Run | Yrd Mat Mat Mat Combat Hostiles Destroyed 26 | . . 16 10 Melee 6 | . . . 6 Guns 20 | . . 16 4 Classes Destroyed 9 | . 1 6 2 Worker 5 | . . 3 2 Builder 1 | . . . 1 Hauler 1 | . . 1 . Recycler 3 | . 1 1 1 Watcher 2 | . . 2 . Swarmer 7 | . . 4 3 Grunt 13 | . . 9 4 Sentry 5 | . . 3 2 Specialist 1 | . . . 1 Best Kill Streak 6 | . 1 6 3 Combat Bots Only 4 | . . 4 2 Max Kills in Single Turn 1 | . 1 1 1 Gunslinging . | . . . . Exploded . | . . . . Melee 1 | . . . 1 Uniques/NPCs Destroyed . | . . . . Combat | -11 -10 -9 -8 -------- Run | Yrd Mat Mat Mat Hostile Shots Fired 224 | . . 99 125 Missed 61 | . . 29 32 Hits 163 | . . 70 93 Projectile 163 | . . 70 93 Critical Strikes 8 | . . 5 3 Damage Taken 2218 | . . 838 1380 Core 773 | . . 223 550 Absorbed by Shields . | . . . . Core Remaining (%) 81 | 100 100 44 . Volleys Fired 112 | . 3 92 17 Largest 2 | . 2 2 2 Hottest 46 | . 40 46 46 Shots Fired 207 | . 6 169 32 Gun 207 | . 6 169 32 Cannon . | . . . . Launcher . | . . . . Special . | . . . . Kinetic 207 | . 6 169 32 Thermal . | . . . . Explosive . | . . . . Electromagnetic . | . . . . Robot Hit Streak 11 | . 5 11 5 Robot Miss Streak 7 | . 1 4 7 Penetration Max . | . . . . Secondary Targets 1 | . . 1 . Max Gunslinging Chain 1 | . . 1 . Shots Hit Robots 130 | . 5 89 36 Core Hits 65 | . 3 38 24 Critical Kills 1 | . . 1 . Critical Parts Destroyed . | . . . . Critical Strikes 4 | . . 1 3 Destroy 1 | . . 1 . Sever 3 | . . . 3 Melee Attacks 32 | . . . 32 Impact . | . . . . Slashing 32 | . . . 32 Piercing . | . . . . Sneak Attacks 1 | . . . 1 Combat Hostiles . | . . . . Follow-up Attacks . | . . . . Damage Inflicted 1973 | . 46 1030 897 Guns 1417 | . 46 1030 341 Cannons . | . . . . Explosions 52 | . . . 52 Melee 504 | . . . 504 Ramming . | . . . . Kinetic 1417 | . 46 1030 341 Thermal . | . . . . Explosive . | . . . . Electromagnetic 52 | . . . 52 Impact . | . . . . Slashing 504 | . . . 504 Piercing . | . . . . Highest Corruption . | . . . . Average Corruption . | . . . . Corruption Purged . | . . . . Corruption Blocked . | . . . . Overload Shots . | . . . . Overflow Damage 1 | . . . 1 Projectiles . | . . . . Explosions . | . . . . Melee 1 | . . . 1 Knockbacks . | . . . . Impact . | . . . . Kinetic . | . . . . Secondary . | . . . . Self-Inflicted Damage 18 | . . . 18 Shots 1 | . . . 1 Rammed . | . . . . Targets Rammed . | . . . . Kicked . | . . . . Crushed . | . . . . Highest Temperature 28 | . . 28 26 Average Temperature 10 | . . 10 17 Received Heat Transfer 579 | . . 426 153 Siege Activations . | . . . . Martial Activations . | . . . . Shielding Activations . | . . . . Robots Disrupted . | . . . . Combat Hostiles . | . . . . Robots Corrupted . | . . . . Combat Hostiles . | . . . . Parts Fried . | . . . . Impact Corruptions . | . . . . Robots Melted . | . . . . Combat Hostiles . | . . . . Parts Melted . | . . . . Heat Transferred . | . . . . Parts Sabotaged . | . . . . Parts Stolen . | . . . . Parts Stripped . | . . . . Power Chain Reactions . | . . . . Alert | -11 -10 -9 -8 ------- Run | Yrd Mat Mat Mat Maximum Alert Level 1 | . . 1 1 Low Security (%) 91 | 100 100 90 91 Level 1 8 | . . 9 8 Level 2 . | . . . . Level 3 . | . . . . Level 4 . | . . . . Level 5 . | . . . . High Security . | . . . . Max Security . | . . . . Peak Influence 264 | . 5 264 211 Initial 102 | . . . 102 Average 99 | . . 100 123 Influence Increases 970 | . 5 525 440 Destroy 0b10 Robot/C 520 | . . 320 200 Destroy 0b10 Robot/NC 60 | . 5 35 20 Destroy Leader 136 | . . 76 60 Successful Hack 8 | . . . 8 Disable Machine 60 | . . 15 45 Destroy Structure 6 | . . 4 2 Lose Combat Pursuer 180 | . . 75 105 Influence Decreases 826 | . 5 282 539 Entered New Map 141 | . . . 141 Time Decay 535 | . 5 252 278 Lost Part 150 | . . 30 120 Squads Dispatched 6 | . 1 1 4 Investigation 1 | . . . 1 Extermination . | . . . . Reinforcement 5 | . 1 1 3 Assault . | . . . . Garrison . | . . . . Intercept . | . . . . Searches Triggered . | . . . . Construction Impeded . | . . . . Haulers Reinforced . | . . . . Active Scanning Responses . | . . . . Cargo Convoy Interrupts . | . . . . Stealth | -11 -10 -9 -8 --------- Run | Yrd Mat Mat Mat Distress Signals 5 | . 1 4 . Communications Jammed . | . . . . Distress Signals . | . . . . Times Spotted 55 | . 2 30 23 Peak Tracking Total 6 | . 1 5 6 Tactical Retreats 7 | . . 3 4 Traps | -11 -10 -9 -8 ------- Run | Yrd Mat Mat Mat Traps Triggered 1 | . . . 1 Indirectly . | . . . . Trap Hack Attempts . | . . . . Triggered . | . . . . Disarmed . | . . . . Reprogrammed . | . . . . Reused . | . . . . Traps Extracted . | . . . . Installed . | . . . . Triggered . | . . . . Machines | -11 -10 -9 -8 ---------- Run | Yrd Mat Mat Mat Machines Disabled 4 | . . 1 3 Max in Single Turn 2 | . . 1 2 Machines Repaired . | . . . . Machines Dismantled . | . . . . Machines Sabotaged . | . . . . Overloaded Fab Kills . | . . . . Hacking | -11 -10 -9 -8 --------- Run | Yrd Mat Mat Mat Machines Accessed 4 | . . 3 1 Terminals 1 | . . 1 . Fabricators . | . . . . Repair Stations 1 | . . 1 . Recycling Units . | . . . . Scanalyzers 2 | . . 1 1 Garrison Access . | . . . . Total Hacks 15 | . . 12 3 Successful 9 | . . 8 1 Failed 6 | . . 4 2 Catastrophic . | . . . . Database Lockouts . | . . . . Manual 1 | . . 1 . Terminals 3 | . . 3 . Fabricators . | . . . . Repair Stations 3 | . . 3 . Recycling Units . | . . . . Scanalyzers 9 | . . 6 3 Garrison Access . | . . . . Terminal Hacks 3 | . . 3 . Record 3 | . . 3 . Fabricator Hacks . | . . . . Repair Station Hacks . | . . . . Recycling Unit Hacks . | . . . . Scanalyzer 6 | . . 5 1 Insert Component 3 | . . 2 1 Analyze 3 | . . 3 . Garrison Access Hacks . | . . . . Unauthorized Hacks . | . . . . Terminals . | . . . . Fabricators . | . . . . Repair Stations . | . . . . Recycling Units . | . . . . Scanalyzers . | . . . . Garrison Access . | . . . . Data Cores Recovered 1 | . 1 . . Used . | . . . . Hacking Detections 4 | . . 3 1 Full Trace Events 1 | . . . 1 Feedback Events . | . . . . Feedback Blocked . | . . . . Robot Schematics Acquired . | . . . . Robots Built . | . . . . Authchips . | . . . . Time . | . . . . Total Robot Build Rating . | . . . . Part Schematics Acquired 2 | . . 2 . Parts Built . | . . . . Authchips . | . . . . Time . | . . . . Total Part Build Rating . | . . . . Part Studies Acquired . | . . . . Parts Repaired . | . . . . Time . | . . . . Parts Recycled . | . . . . Recycled Matter . | . . . . Retrieved Matter . | . . . . Retrieved Components . | . . . . Parts Scanalyzed 3 | . . 2 1 Part Schematics Acquired 2 | . . 2 . Parts Damaged . | . . . . Bothacking | -11 -10 -9 -8 ------------ Run | Yrd Mat Mat Mat Used RIF Installer . | . . . . Robots Hacked . | . . . . Non-combat . | . . . . Combat . | . . . . Robot Hacks Applied . | . . . . Relay Couplers Released . | . . . . Fabnet Peak Effective % . | . . . . Robots Rewired . | . . . . Allies Hacked . | . . . . Hacks Repelled . | . . . . Allies | -11 -10 -9 -8 -------- Run | Yrd Mat Mat Mat Total Allies . | . . . . Largest Group . | . . . . Highest-Rated Group . | . . . . Highest-Rated Ally . | . . . . Total Orders . | . . . . Ally Attacks . | . . . . Total Damage . | . . . . Kills . | . . . . Allies Corrupted . | . . . . Allies Melted . | . . . . Intel | -11 -10 -9 -8 ------- Run | Yrd Mat Mat Mat Active Infowar (turns) 852 | . . 236 616 Optics 852 | . . 236 616 Robot Analysis Total . | . . . . Derelict Logs Recovered . | . . . . Drone Launches . | . . . . Drone Recoveries . | . . . . Exploration | -11 -10 -9 -8 ------------- Run | Yrd Mat Mat Mat Turns Passed 1591 | 45 110 820 616 Spaces Moved 948 | 39 110 475 324 Core 3 | 1 . . 2 Treads 40 | . . 40 . Legs . | . . . . Wheels 905 | 38 110 435 322 Hover . | . . . . Flight . | . . . . Fastest Speed 50 | 50 90 80 90 Average Speed 94 | 88 90 95 95 Slowest Speed 350 | 90 90 160 350 Overloaded Moves . | . . . . Propulsion Burnouts . | . . . . Robots Hopped . | . . . . Potential Cave-ins . | . . . . Cave-ins Triggered . | . . . . Exploration Rate (%) 20 | 4 24 35 20 Regions Visited 3 Branch Regions . Pre-discovered Areas . | . . . . Known Exits Taken . | . . . . Unknown Exits Taken 3 | 1 1 1 . Scrap Searched . | . . . . Spaces Dug . | . . . . Terrain Destroyed . | . . . . Melee . | . . . . Projectile . | . . . . AOE . | . . . . Terrain Rammed . | . . . . Walls Destroyed . | . . . . Machines Disabled . | . . . . Actions | -11 -10 -9 -8 --------- Run | Yrd Mat Mat Mat Total 1387 | 45 116 679 547 Wait 217 | . . 67 150 Move 945 | 38 109 474 324 Hop . | . . . . Pick Up 12 | . 4 7 1 Fast Attach 30 | 6 . 16 8 Attach 6 | . . 1 5 Detach 5 | . . 2 3 Swap 11 | 1 . 5 5 Drop 17 | . . 15 2 Fire 112 | . 3 92 17 Melee 32 | . . . 32 Ram . | . . . . Kick . | . . . . Crush . | . . . . Escape Stasis . | . . . . Rewire . | . . . . Trap . | . . . . Miscellaneous . | . . . . Route ------- -11/Scrapyard -10/Materials -9/Materials (discovered 2 exits: *Mat / [*Min]) -8/Materials (discovered 1 exit: [*Fac]) History --------- Turn | Location | Event 24 | -11/Scrapyard | Discovered new exit (range 16) 46 | -11/Scrapyard | Entered Materials 47 | -10/Materials | Met a group of wandering Federalists 151 | -10/Materials | Discovered new exit (range 8) 156 | -10/Materials | Entered another Materials area 156 | -9/Materials | Evolved 2 slots: Utility x2 395 | -9/Materials | Discovered new exit (range 12) 761 | -9/Materials | Build established: Scavenger-Mutant 877 | -9/Materials | Core integrity fell below 50% 961 | -9/Materials | Discovered new exit (range 18) 976 | -9/Materials | Entered another Materials area 976 | -8/Materials | Evolved 2 slots: Propulsion x2 1398 | -8/Materials | Lost 4 parts (1p3n) 1422 | -8/Materials | Discovered new exit (range 17) 1572 | -8/Materials | Core integrity fell below 50% 1590 | -8/Materials | Core integrity fell below 20% 1592 | -8/Materials | Destroyed by H-61 Shepherd with Heavy Assault Cannon Last Messages --------------- 01550_ G-47 Trooper Particle Gun severed. 01552_ Minigun destroyed. 01552_ G-47 Trooper destroyed. 01556_ R-06 Scavenger collects Aluminum Leg. 01557_ Acquired Imp. Heat Sink. 01560_ R-06 Scavenger collects Particle Gun. 01564_ R-06 Scavenger collects Aluminum Leg. 01569_ Com. Wheel destroyed. 01569_ Lgt. Ion Engine destroyed. 01577_ Penetrated by Slug. 01577_ Knocked back. 01579_ H-61 Shepherd calls for reinforcements. 01579_ ALERT: Hostile activity reported, dispatching reinforcements to area. 01579_ Arm. Wheel destroyed. 01579_ Critical hit (Blast). 01579_ Knocked back. 01580_ Com. Wheel destroyed. 01585_ Wheel destroyed. 01585_ Katana destroyed. Map ----- +----------------------------------------------------+ | ######+###??????????????????? | | # #??????????????????? | | # ""#??????????????????? | | # %[""#??????????????????? | | # T"#??????????????????? | | # [ ""#??????????????????? | | # [[ ""#??????????????????? | | # #??????????????????? | | # ! #??????????????????? | | # #??????????????????? | | #####+####??????????????????? | | ??# ##########+#????????? | | ??# k ????? | | ??# [????? | | ??# % ????? | | ??# #### ####??????? | | ??##% ;#???? #?????????? | | ???# ##?????!!!!#?????????? | | ???# ###??????!!#?????????? | | ???# ""#???????##?????????? | | ???# T"#??????????????????? | | ???# ""#??????????????????? | | ??##% %###??????????????????? | | ??#% Y #????????????????????? | | ??## H #????????????????????? | | ???#@ g#????????????????????? | | ???# %+ ???????????????????? | | ???# a # ??????????????????? | | ???# < # ?????????????????? | | ???# #?###????????????????? | | ???#####????????????????????? | | ????????????????????????????? | | ????????????????????????????? | | ????????????????????????????? | | ????????????????????????????? | | ????????????????????????????? | | ????????????????????????????? | | ????????????????????????????? | | ????????????????????????????? | | ????????????????????????????? | | ????????????????????????????? | | | | | | | | | | | | | | | | | | | +----------------------------------------------------+ Best States ------------- Heat Dissipation 45 Energy Generation 14 Energy Capacity 265 Matter Stores 300 Matter Capacity 300 Sight Range 18 Terrain Scan Density 10 Evasion (%) 44 Targeting Accuracy 6 Recoil Reduction 2 Offensive Hacking 30 Item Schematics ----------------- Hacking Suite | -9/Materials | Scanalyzed VTOL Module | -9/Materials | Scanalyzed Robot Schematics ------------------ None Fabricated ------------ Nothing Repaired ---------- Nothing Studied --------- None Alien Tech Used ----------------- None Achievements -------------- Ghost 'Em Heavy Suspicion Spot Them First Challenges ------------ None Game ------ Seed AlertProjectileDriver Manual? 0 Play Time 00:13:21 Cumulative 38.7 hours Start 2025.10.22 @ 00:44:32 End 2025.10.22 @ 00:56:35 Sessions 1 Manual Loads 0 Difficulty Rogue Special Mode None Game No. 156 Rogue 156 Adventurer 0 Explorer 0 Win Type - Total 0 Types 0/0/0/0/0/0/0/0/0/0 Lore% 12 Gallery% 32 Achievement% 18 Wizard Run 0 Options --------- Layout 1 ASCII 0 Keyboard 1 Movement Vi Keybinds 0 Fullscreen 1 Font 16/SmallcapsGlow Map View 55x38 Zoom Use 0% Tactical HUD 1 Map Filters NONE Filters NONE Steam 1 RUN: 694a2b8a-e738-47ac-9a8b-a4dc5b10396b